fUSD/lending_fUSD_20250413
["ID","MTS","AMOUNT","RATE_DAILY","PERIOD"]
[357889329,1744512639565,-500.0,0.00019178,2]
[357889330,1744512639576,-612.41,0.00019178,2]
[357889331,1744512639587,-617.51032778,0.00019178,2]
[357889332,1744512639597,-500.0,0.00019178,2]
[357889333,1744512639607,-500.0,0.00019178,2]
[357889334,1744512639616,-500.0,0.00019178,2]
[357889335,1744512639626,-500.0,0.00019178,2]
[357889336,1744512639635,-500.0,0.00019178,2]
[357889337,1744512639645,-500.0,0.00019178,2]
[357889338,1744512639656,-500.0,0.00019178,2]
[357889339,1744512639666,-500.0,0.00019178,2]
[357889340,1744512639677,-1753.98,0.00019178,2]
[357889341,1744512639687,-522.32,0.00019178,2]
[357889342,1744512639696,-500.0,0.00019178,2]
[357889343,1744512639706,-500.0,0.00019178,2]
[357889344,1744512639715,-500.0,0.00019178,2]
[357889345,1744512639725,-500.0,0.00019178,2]
[357889346,1744512639734,-1385.43,0.00019178,2]
[357889347,1744512639743,-175.35974482,0.00019178,2]
[357889348,1744512640520,-734.78025518,0.00019178,2]
[357889349,1744512640529,-500.0,0.00019178,2]
[357889350,1744512640539,-1067.0,0.00019178,2]
[357889351,1744512640548,-500.0,0.00019178,2]
[357889352,1744512640557,-500.0,0.00019178,2]
[357889353,1744512640567,-500.0,0.00019178,2]
[357889354,1744512640579,-500.0,0.00019178,2]
[357889355,1744512640588,-500.0,0.00019178,2]
[357889356,1744512640598,-504.0,0.00019178,2]
[357889357,1744512640607,-500.0,0.00019178,2]
[357889358,1744512640617,-500.0,0.00019178,2]
[357889359,1744512640627,-504.84925517,0.00019178,2]
[357889360,1744512640636,-568.17223295,0.00019178,2]
[357889361,1744512640644,-500.0,0.00019178,2]
[357889362,1744512640654,-2333.0,0.00019178,2]
[357889363,1744512640664,-500.0,0.00019178,2]
[357889364,1744512640673,-500.0,0.00019178,2]
[357889365,1744512640682,-500.0,0.00019178,2]
[357889366,1744512640691,-500.0,0.00019178,2]
[357889367,1744512640700,-500.0,0.00019178,2]
[357889368,1744512640709,-236.81213417,0.00019178,2]
[357889369,1744512640718,-500.0,0.00019178,2]
[357889370,1744512640728,-3017.5,0.00019178,2]
[357889371,1744512640737,-500.0,0.00019178,2]
[357889372,1744512640746,-500.0,0.00019178,2]
[357889373,1744512640755,-647.65,0.00019178,2]
[357889374,1744512640764,-500.0,0.00019178,2]
[357889375,1744512640774,-500.0,0.00019178,2]
[357889376,1744512640783,-500.0,0.00019178,2]
[357889377,1744512640793,-500.0,0.00019178,2]
[357889378,1744512640803,-500.0,0.00019178,2]
[357889379,1744512640812,-1540.6,0.00019178,2]
[357889380,1744512640821,-560.95,0.00019178,2]
[357889381,1744512640830,-500.0,0.00019178,2]
[357889382,1744512640840,-500.0,0.00019178,2]
[357889383,1744512640849,-500.0,0.00019178,2]
[357889384,1744512640858,-500.0,0.00019178,2]
[357889385,1744512640868,-500.0,0.00019178,2]
[357889386,1744512640877,-500.0,0.00019178,2]
[357889388,1744512640886,-500.0,0.00019178,2]
[357889390,1744512640895,-500.0,0.00019178,2]
[357889392,1744512640904,-629.32,0.00019178,2]
[357889394,1744512640913,-500.0,0.00019178,2]
[357889395,1744512640923,-500.0,0.00019178,2]
[357889396,1744512640932,-500.0,0.00019178,2]
[357889397,1744512640942,-500.0,0.00019178,2]
[357889398,1744512640950,-500.0,0.00019178,2]
[357889399,1744512640960,-500.0,0.00019178,2]
[357889400,1744512640970,-500.0,0.00019178,2]
[357889401,1744512640979,-500.0,0.00019178,2]
[357889402,1744512640988,-500.0,0.00019178,2]
[357889403,1744512640998,-500.0,0.00019178,2]
[357889404,1744512641007,-642.2489222,0.00019178,2]
[357889405,1744512641016,-500.0,0.00019178,2]
[357889406,1744512641025,-500.0,0.00019178,2]
[357889407,1744512641034,-500.0,0.00019178,2]
[357889408,1744512641043,-326.43394485,0.00019178,2]
[357889409,1744512641052,-500.0,0.00019178,2]
[357889410,1744512641061,-500.0,0.00019178,2]
[357889411,1744512641070,-500.0,0.00019178,2]
[357889412,1744512641080,-500.0,0.00019178,2]
[357889413,1744512641089,-500.0,0.00019178,2]
[357889414,1744512641098,-4018.5,0.00019178,2]
[357889415,1744512641107,-500.0,0.00019178,2]
[357889416,1744512641116,-500.0,0.00019178,2]
[357889417,1744512641126,-500.0,0.00019178,2]
[357889418,1744512641134,-150.0,0.00019233,2]
[357889419,1744512641143,-150.0,0.00019233,2]
[357889420,1744512641153,-504.0,0.00019233,2]
[357889421,1744512641162,-2333.0,0.00019233,2]
[357889422,1744512641171,-150.0,0.00019288,2]
[357889423,1744512641180,-200.0,0.00019288,2]
[357889424,1744512641189,-504.0,0.00019288,2]
[357889425,1744512641198,-2333.0,0.00019288,2]
[357889426,1744512641208,-150.0,0.00019342,2]
[357889427,1744512641218,-504.0,0.00019342,2]
[357889428,1744512641227,-2333.0,0.00019342,2]
[357889429,1744512641236,-2198.0757,0.00019352,2]
[357889430,1744512641246,-208.38607561,0.00019378,2]
[357889431,1744512641255,-150.0,0.00019397,2]
[357889432,1744512641264,-504.0,0.00019397,2]
[357889433,1744512641273,-2333.0,0.00019397,2]
[357889434,1744512641282,-398.8204529,0.00019399,2]
[357889435,1744512641291,-428.76,0.00019442,2]
[357889436,1744512641300,-250.0,0.00019452,2]
[357889437,1744512641309,-504.0,0.00019452,2]
[357889438,1744512641319,-2333.0,0.00019452,2]
[357889439,1744512641327,-500.0,0.00019452,2]
[357889440,1744512641336,-500.0,0.00019452,2]
[357889441,1744512641345,-519.35545626,0.00019452,2]
[357889442,1744512641355,-500.0,0.00019452,2]
[357889443,1744512641364,-500.0,0.00019452,2]
[357889444,1744512641373,-500.0,0.00019452,2]
[357889445,1744512641382,-500.0,0.00019452,2]
[357889446,1744512641391,-500.0,0.00019452,2]
[357889447,1744512641400,-500.0,0.00019452,2]
[357889448,1744512641409,-500.0,0.00019452,2]
[357889449,1744512641419,-500.0,0.00019452,2]
[357889450,1744512641428,-529.93262804,0.00019452,2]
[357889451,1744512641437,-500.0,0.00019452,2]
[357889452,1744512641446,-500.0,0.00019452,2]
[357889453,1744512641455,-500.0,0.00019452,2]
[357889454,1744512641464,-500.0,0.00019452,2]
[357889455,1744512641473,-500.0,0.00019452,2]
[357889456,1744512641482,-565.73232558,0.00019452,2]
[357889457,1744512641492,-500.0,0.00019452,2]
[357889458,1744512641501,-500.0,0.00019452,2]
[357889459,1744512641510,-500.0,0.00019452,2]
[357889460,1744512641520,-500.0,0.00019452,2]
[357889461,1744512641529,-500.0,0.00019452,2]
[357889462,1744512641538,-500.0,0.00019452,2]
[357889463,1744512641548,-500.0,0.00019452,2]
[357889464,1744512641557,-500.0,0.00019452,2]
[357889465,1744512641566,-554.78597452,0.00019452,2]
[357889466,1744512641577,-500.0,0.00019452,2]
[357889467,1744512641588,-500.0,0.00019452,2]
[357889468,1744512641597,-500.0,0.00019452,2]
[357889469,1744512641607,-500.0,0.00019452,2]
[357889470,1744512641616,-500.0,0.00019452,2]
[357889471,1744512641626,-500.0,0.00019452,2]
[357889472,1744512641635,-500.0,0.00019452,2]
[357889473,1744512641644,-500.0,0.00019452,2]
[357889474,1744512641654,-500.0,0.00019452,2]
[357889475,1744512641664,-500.0,0.00019452,2]
[357889476,1744512641673,-500.0,0.00019452,2]
[357889477,1744512641682,-528.2486471,0.00019452,2]
[357889478,1744512641691,-500.0,0.00019452,2]
[357889479,1744512641700,-500.0,0.00019452,2]
[357889480,1744512641710,-813.94,0.00019452,2]
[357889481,1744512641719,-500.0,0.00019452,2]
[357889482,1744512641728,-500.0,0.00019452,2]
[357889483,1744512641738,-4786.07,0.00019452,2]
[357889484,1744512641748,-500.0,0.00019452,2]
[357889485,1744512641757,-500.0,0.00019452,2]
[357889486,1744512641767,-633.79063105,0.00019452,2]
[357889487,1744512641776,-500.0,0.00019452,2]
[357889488,1744512641786,-500.0,0.00019452,2]
[357889489,1744512641795,-500.0,0.00019452,2]
[357889490,1744512641805,-500.0,0.00019452,2]
[357889491,1744512641814,-500.0,0.00019452,2]
[357889492,1744512641823,-500.0,0.00019452,2]
[357889493,1744512641832,-895.31,0.00019452,2]
[357889494,1744512641841,-500.0,0.00019452,2]
[357889495,1744512641850,-500.0,0.00019452,2]
[357889496,1744512641860,-500.0,0.00019452,2]
[357889497,1744512641869,-500.0,0.00019452,2]
[357889498,1744512641878,-580.37241549,0.00019452,2]
[357889499,1744512641887,-328.37177148,0.00019452,2]
[357889500,1744512641897,-500.0,0.00019452,2]
[357889501,1744512641906,-500.0,0.00019452,2]
[357889502,1744512641915,-500.0,0.00019452,2]
[357889503,1744512641924,-7740.05,0.00019452,2]
[357889504,1744512641933,-500.0,0.00019452,2]
[357889505,1744512641942,-575.05615031,0.00019452,2]
[357889506,1744512641951,-500.0,0.00019452,2]
[357889507,1744512641962,-500.0,0.00019452,2]
[357889508,1744512641971,-651.7,0.00019452,2]
[357889509,1744512641980,-1572.03,0.00019452,2]
[357889510,1744512641990,-500.0,0.00019452,2]
[357889511,1744512641999,-500.0,0.00019452,2]
[357889512,1744512642009,-500.0,0.00019452,2]
[357889513,1744512642018,-500.0,0.00019452,2]
[357889514,1744512642027,-612.41,0.00019452,2]
[357889515,1744512642036,-500.0,0.00019452,2]
[357889516,1744512642045,-500.0,0.00019452,2]
[357889517,1744512642055,-500.0,0.00019452,2]
[357889518,1744512642064,-639.22744867,0.00019452,2]
[357889519,1744512642073,-500.0,0.00019452,2]
[357889520,1744512642082,-500.0,0.00019452,2]
[357889521,1744512642092,-500.0,0.00019452,2]
[357889522,1744512642101,-464.16926183,0.00019452,2]
[357889523,1744512642110,-522.32,0.00019452,2]
[357889524,1744512642119,-1753.98,0.00019452,2]
[357889525,1744512642129,-500.0,0.00019452,2]
[357889526,1744512642138,-579.63153766,0.00019452,2]
[357889527,1744512642147,-500.0,0.00019452,2]
[357889528,1744512642156,-1385.43,0.00019452,2]
[357889529,1744512642165,-910.14,0.00019452,2]
[357889530,1744512642174,-500.0,0.00019452,2]
[357889531,1744512642183,-1067.0,0.00019452,2]
[357889532,1744512642193,-500.0,0.00019452,2]
[357889533,1744512642202,-645.33946702,0.00019452,2]
[357889534,1744512642212,-500.0,0.00019452,2]
[357889535,1744512642221,-514.6428671,0.00019452,2]
[357889536,1744512642230,-500.0,0.00019452,2]
[357889537,1744512642240,-500.0,0.00019452,2]
[357889538,1744512642250,-500.0,0.00019452,2]
[357889539,1744512642259,-500.0,0.00019452,2]
[357889540,1744512642269,-519.26799572,0.00019452,2]
[357889541,1744512642279,-3017.5,0.00019452,2]
[357889542,1744512642288,-500.0,0.00019452,2]
[357889543,1744512642297,-647.65,0.00019452,2]
[357889544,1744512642306,-520.89893853,0.00019452,2]
[357889545,1744512642316,-500.0,0.00019452,2]
[357889546,1744512642325,-500.0,0.00019452,2]
[357889547,1744512642334,-516.96592453,0.00019452,2]
[357889548,1744512642343,-1540.6,0.00019452,2]
[357889549,1744512642353,-560.95,0.00019452,2]
[357889550,1744512642362,-457.65510677,0.00019452,2]
[357889551,1744512642371,-500.0,0.00019452,2]
[357889552,1744512642380,-500.0,0.00019452,2]
[357889553,1744512642390,-174.54659633,0.00019452,2]
[357889554,1744512642399,-500.0,0.00019452,2]
[357889555,1744512642409,-500.0,0.00019452,2]
[357889556,1744512642418,-629.32,0.00019452,2]
[357889557,1744512642428,-500.0,0.00019452,2]
[357889558,1744512642437,-500.0,0.00019452,2]
[357889559,1744512642447,-500.0,0.00019452,2]
[357889560,1744512642456,-500.0,0.00019452,2]
[357889561,1744512642466,-500.0,0.00019452,2]
[357889562,1744512642475,-500.0,0.00019452,2]
[357889563,1744512642484,-500.0,0.00019452,2]
[357889564,1744512642494,-500.0,0.00019452,2]
[357889565,1744512642503,-500.0,0.00019452,2]
[357889566,1744512642513,-500.0,0.00019452,2]
[357889567,1744512642522,-500.0,0.00019452,2]
[357889568,1744512642532,-500.0,0.00019452,2]
[357889569,1744512642541,-500.0,0.00019452,2]
[357889570,1744512642550,-500.0,0.00019452,2]
[357889571,1744512642559,-4018.5,0.00019452,2]
[357889572,1744512642568,-500.0,0.00019452,2]
[357889573,1744512642583,-500.0,0.00019452,2]
[357889574,1744512642592,-500.0,0.00019473,2]
[357889575,1744512642601,-500.0,0.00019473,2]
[357889576,1744512642610,-504.0,0.00019507,2]
[357889577,1744512642619,-2333.0,0.00019507,2]
[357889578,1744512642631,-163.07,0.00019554,2]
[357889579,1744512642640,-351.43858915,0.00019561,2]
[357889580,1744512642649,-504.0,0.00019562,2]
[357889581,1744512642659,-2333.0,0.00019562,2]
[357889582,1744512642668,-504.0,0.00019616,2]
[357889583,1744512642677,-2333.0,0.00019616,2]
[357889584,1744512642686,-1102.69536133,0.00019626,2]
[357889585,1744512642695,-1102.69536127,0.00019656,2]
[357889586,1744512642703,-504.0,0.00019671,2]
[357889587,1744512642712,-2333.0,0.00019671,2]
[357889588,1744512642721,-1102.69536127,0.00019687,2]
[357889589,1744512642730,-4285.96812752,0.000197,2]
[357889590,1744512642739,-1102.69536127,0.00019717,2]
[357889591,1744512642749,-300.0,0.00019725,2]
[357889592,1744512642915,-301.71229768,0.00019725,2]
[357889593,1744512642956,-504.0,0.00019726,2]
[357889594,1744512642965,-2333.0,0.00019726,2]
[357889595,1744512642974,-500.0,0.00019726,2]
[357889596,1744512642983,-500.0,0.00019726,2]
[357889597,1744512642993,-500.0,0.00019726,2]
[357889598,1744512643002,-500.0,0.00019726,2]
[357889599,1744512643011,-500.0,0.00019726,2]
[357889600,1744512643020,-500.0,0.00019726,2]
[357889601,1744512643029,-500.0,0.00019726,2]
[357889602,1744512643038,-500.0,0.00019726,2]
[357889603,1744512643047,-500.0,0.00019726,2]
[357889604,1744512643056,-500.0,0.00019726,2]
[357889605,1744512643066,-500.0,0.00019726,2]
[357889606,1744512643075,-500.0,0.00019726,2]
[357889607,1744512643084,-500.0,0.00019726,2]
[357889609,1744512643093,-500.0,0.00019726,2]
[357889610,1744512643103,-500.0,0.00019726,2]
[357889611,1744512643114,-500.0,0.00019726,2]
[357889612,1744512643123,-500.0,0.00019726,2]
[357889613,1744512643133,-500.0,0.00019726,2]
[357889614,1744512643143,-500.0,0.00019726,2]
[357889615,1744512643152,-500.0,0.00019726,2]
[357889616,1744512643161,-500.0,0.00019726,2]
[357889617,1744512643171,-500.0,0.00019726,2]
[357889618,1744512643180,-500.0,0.00019726,2]
[357889619,1744512643189,-500.0,0.00019726,2]
[357889620,1744512643198,-500.0,0.00019726,2]
[357889621,1744512643207,-500.0,0.00019726,2]
[357889622,1744512643216,-500.0,0.00019726,2]
[357889623,1744512643225,-500.0,0.00019726,2]
[357889624,1744512643234,-500.0,0.00019726,2]
[357889625,1744512643243,-555.29758389,0.00019726,2]
[357889626,1744512643252,-500.0,0.00019726,2]
[357889627,1744512643261,-813.94,0.00019726,2]
[357889628,1744512643270,-500.0,0.00019726,2]
[357889629,1744512643280,-4786.07,0.00019726,2]
[357889630,1744512643289,-500.0,0.00019726,2]
[357889631,1744512643299,-500.0,0.00019726,2]
[357889633,1744512643308,-500.0,0.00019726,2]
[357889635,1744512643317,-500.0,0.00019726,2]
[357889636,1744512643327,-500.0,0.00019726,2]
[357889637,1744512643336,-500.0,0.00019726,2]
[357889638,1744512643345,-500.0,0.00019726,2]
[357889639,1744512643354,-500.0,0.00019726,2]
[357889640,1744512643362,-895.31,0.00019726,2]
[357889641,1744512643372,-500.0,0.00019726,2]
[357889642,1744512643381,-552.83065259,0.00019726,2]
[357889644,1744512643392,-500.0,0.00019726,2]
[357889646,1744512643401,-556.84276993,0.00019726,2]
[357889647,1744512643411,-500.0,0.00019726,2]
[357889648,1744512643420,-7740.05,0.00019726,2]
[357889649,1744512643430,-500.0,0.00019726,2]
[357889650,1744512643439,-337.00232555,0.00019726,2]
[357889651,1744512643449,-561.99091116,0.00019726,2]
[357889652,1744512643459,-651.7,0.00019726,2]
[357889653,1744512643469,-1572.03,0.00019726,2]
[357889654,1744512643478,-500.0,0.00019726,2]
[357889655,1744512643493,-500.0,0.00019726,2]
[357889656,1744512643503,-403.30714318,0.00019726,2]
[357889657,1744512643513,-500.0,0.00019726,2]
[357889658,1744512643523,-612.41,0.00019726,2]
[357889659,1744512643533,-500.0,0.00019726,2]
[357889660,1744512643544,-568.26443158,0.00019726,2]
[357889661,1744512643554,-500.0,0.00019726,2]
[357889662,1744512643564,-500.0,0.00019726,2]
[357889663,1744512643575,-522.32,0.00019726,2]
[357889664,1744512643588,-1753.98,0.00019726,2]
[357889665,1744512643599,-500.0,0.00019726,2]
[357889666,1744512643609,-500.0,0.00019726,2]
[357889667,1744512643619,-1385.43,0.00019726,2]
[357889668,1744512643629,-910.14,0.00019726,2]
[357889669,1744512643639,-1067.0,0.00019726,2]
[357889670,1744512643649,-500.0,0.00019726,2]
[357889671,1744512643662,-500.0,0.00019726,2]
[357889672,1744512643673,-525.08822907,0.00019726,2]
[357889673,1744512643683,-500.0,0.00019726,2]
[357889674,1744512643693,-500.0,0.00019726,2]
[357889675,1744512643702,-3017.5,0.00019726,2]
[357889676,1744512643712,-647.65,0.00019726,2]
[357889677,1744512643722,-500.0,0.00019726,2]
[357889678,1744512643731,-500.0,0.00019726,2]
[357889679,1744512643742,-1540.6,0.00019726,2]
[357889680,1744512643752,-560.95,0.00019726,2]
[357889681,1744512643762,-500.0,0.00019726,2]
[357889682,1744512643772,-500.0,0.00019726,2]
[357889683,1744512643782,-500.0,0.00019726,2]
[357889684,1744512643792,-500.0,0.00019726,2]
[357889685,1744512643802,-629.32,0.00019726,2]
[357889686,1744512643812,-500.0,0.00019726,2]
[357889687,1744512643822,-500.0,0.00019726,2]
[357889688,1744512643832,-500.0,0.00019726,2]
[357889689,1744512643842,-500.0,0.00019726,2]
[357889690,1744512643852,-500.0,0.00019726,2]
[357889691,1744512643863,-500.0,0.00019726,2]
[357889692,1744512643874,-500.0,0.00019726,2]
[357889693,1744512643884,-500.0,0.00019726,2]
[357889694,1744512643894,-500.0,0.00019726,2]
[357889695,1744512643904,-181.00433449,0.00019726,2]
[357889696,1744512643915,-500.0,0.00019726,2]
[357889697,1744512643926,-500.0,0.00019726,2]
[357889698,1744512643936,-500.0,0.00019726,2]
[357889699,1744512643947,-4018.5,0.00019726,2]
[357889700,1744512643958,-598.87200638,0.00019726,2]
[357889701,1744512643968,-500.0,0.00019726,2]
[357889702,1744512643978,-1102.69536127,0.00019748,2]
[357889703,1744512643988,-1102.69536127,0.00019778,2]
[357889704,1744512643997,-504.0,0.00019781,2]
[357889705,1744512644007,-2333.0,0.00019781,2]
[357889706,1744512644016,-1102.69536127,0.00019809,2]
[357889707,1744512644028,-504.0,0.00019836,2]
[357889708,1744512644038,-2333.0,0.00019836,2]
[357889709,1744512644048,-1102.69536127,0.00019839,2]
[357889710,1744512644058,-262.24764117,0.00019863,2]
[357889711,1744512644067,-1102.69536127,0.0001987,2]
[357889712,1744512644078,-504.0,0.0001989,2]
[357889713,1744512644087,-2333.0,0.0001989,2]
[357889714,1744512644098,-3612.24378234,0.000199,2]
[357889715,1744512644107,-1102.69536127,0.000199,2]
[357889716,1744512644117,-1327.0,0.00019918,2]
[357889717,1744512644127,-2046.0,0.00019918,2]
[357889718,1744512644137,-1287.0,0.00019918,2]
[357889719,1744512644147,-795.0,0.00019918,2]
[357889720,1744512644156,-167.445,0.00019918,2]
[357889721,1744512644166,-907.0,0.00019918,2]
[357889722,1744512644176,-545.0,0.00019918,2]
[357889723,1744512644186,-1438.0,0.00019918,2]
[357889724,1744512644196,-4147.0,0.00019918,2]
[357889725,1744512644206,-575.0,0.00019918,2]
[357889727,1744512644216,-3963.0,0.00019918,2]
[357889729,1744512644226,-150.0,0.00019918,2]
[357889730,1744512644235,-698.0,0.00019918,2]
[357889731,1744512644245,-152.0,0.00019918,2]
[357889732,1744512644255,-1196.821,0.00019934,2]
[357889733,1744512644264,-351.43858916,0.00019937,2]
[357889734,1744512644275,-504.0,0.00019945,2]
[357889735,1744512644285,-2333.0,0.00019945,2]
[357889736,1744512644294,-500.0,0.00019973,2]
[357889737,1744512644304,-500.0,0.00019973,2]
[357889738,1744512644314,-500.0,0.00019973,2]
[357889739,1744512644324,-504.72204853,0.00019973,2]
[357889740,1744512644334,-252.72180725,0.00019973,2]
[357889741,1744512644343,-514.45733583,0.00019973,2]
[357889742,1744512644353,-500.0,0.00019973,2]
[357889743,1744512644362,-502.94929723,0.00019973,2]
[357889744,1744512644372,-500.0,0.00019973,2]
[357889745,1744512644382,-67215.415652,0.00019986,2]
[357889746,1744512644392,-812.4559181,0.00019986,2]
[357889747,1744512644402,-2893.6061808,0.00019986,2]
[357889748,1744512644412,-10278.1152159,0.00019986,2]
[357889749,1744512644421,-1427.0,0.0002,2]
[357889750,1744512644432,-63729.96630567,0.0002,2]
[357889751,1744512644441,-258.83967971,0.0002,2]
[357889752,1744512644451,-1038.70718577,0.0002,2]
[357889753,1744512644462,-504.0,0.0002,2]
[357889754,1744512644472,-2333.0,0.0002,2]
[357889755,1744512644481,-665171.93352673,0.0002,2]
[357889756,1744512644500,-539.70984892,0.0002,2]
[357889757,1744512644517,-1199.75797756,0.0002,2]
[357889758,1744512644529,-557.6410445,0.0002,2]
[357889759,1744512644541,-2546.43619307,0.0002,2]
[357889760,1744512644552,-59247.97601986,0.0002,2]
[357889761,1744512644564,-744.96847343,0.0002,2]
[357889762,1744512646102,-500.0,0.00019178,2]
[357889763,1744512646111,-246.61741501,0.00019178,2]
[357889781,1744512702105,150.0,0.0002,10]
[357889785,1744512752601,240.23328859,0.00013699,2]
[357889786,1744512752627,48.20671141,0.00013699,2]
[357889787,1744512752976,288.44,0.00013699,2]
[357889788,1744512753291,288.44,0.00013699,2]
[357889789,1744512753709,288.44,0.00013699,2]
[357889790,1744512754035,288.44,0.00013699,2]
[357889791,1744512754368,288.44,0.00013699,2]
[357889792,1744512754821,288.44,0.00013699,2]
[357889793,1744512755127,288.44,0.00013699,2]
[357889794,1744512755525,288.44,0.00013699,2]
[357889795,1744512755919,288.44,0.00013699,2]
[357889796,1744512756326,288.44,0.00013699,2]
[357889797,1744512756733,288.44,0.00013699,2]
[357889798,1744512758330,257.97833453,0.00013699,2]
[357889799,1744512758356,30.46166547,0.00013699,2]
[357889800,1744512758737,288.44,0.00013699,2]
[357889801,1744512759129,288.44,0.00013699,2]
[357889802,1744512759463,288.44,0.00013699,2]
[357889803,1744512759845,288.44,0.00013699,2]
[357889804,1744512760791,288.44,0.00013699,2]
[357889805,1744512761195,288.44,0.00013699,2]
[357889806,1744512761935,288.49577716,0.00013699,2]
[357889811,1744513212336,164.295954,0.0002,5]
[357889812,1744513214883,164.295954,0.0002,3]
[357889813,1744513220417,151.612995,0.0002,5]
[357889814,1744513223507,222.973077,0.0003,30]
[357889815,1744513227863,222.973077,0.0003,31]
[357889816,1744513228158,222.973077,0.0002,5]
[357889817,1744513228466,222.973077,0.00019996,5]
[357889818,1744513228762,222.973077,0.00019992,5]
[357889819,1744513229076,222.973077,0.00019989,5]
[357889820,1744513229371,222.973077,0.00019985,5]
[357889821,1744513230964,222.973077,0.0002,4]
[357889822,1744513231324,222.973077,0.0002,3]
[357889823,1744513231651,222.973077,0.00019998,3]
[357889824,1744513231907,222.973077,0.00019995,3]
[357889825,1744513232187,222.973077,0.00019992,3]
[357889826,1744513232479,222.973077,0.0001999,3]
[357889827,1744513258408,1054.7,0.00016618,2]
[357889828,1744513272984,-250.0,0.00018564,2]
[357889829,1744513273010,-1000.0,0.0001886,2]
[357889830,1744513273034,-150.0,0.00018878,2]
[357889831,1744513273059,-1054.7,0.00018882,2]
[357889832,1744513273085,-354.14668587,0.00018898,2]
[357889833,1744513273113,-5137.09,0.00018906,2]
[357889834,1744513273138,-354.14668587,0.00018986,2]
[357889835,1744513273163,-250.0,0.00019,2]
[357889836,1744513273187,-500.0,0.00019173,2]
[357889837,1744513273214,-500.0,0.00019178,2]
[357889838,1744513273239,-500.0,0.00019178,2]
[357889839,1744513273263,-500.0,0.00019178,2]
[357889840,1744513273288,-500.0,0.00019178,2]
[357889841,1744513273312,-500.0,0.00019178,2]
[357889842,1744513273337,-500.0,0.00019178,2]
[357889843,1744513273362,-500.0,0.00019178,2]
[357889844,1744513273387,-556.3734324,0.00019178,2]
[357889845,1744513273411,-500.0,0.00019178,2]
[357889846,1744513273436,-500.0,0.00019178,2]
[357889847,1744513273461,-500.0,0.00019178,2]
[357889848,1744513273486,-500.0,0.00019178,2]
[357889849,1744513273511,-500.0,0.00019178,2]
[357889850,1744513273536,-500.0,0.00019178,2]
[357889851,1744513273562,-500.0,0.00019178,2]
[357889852,1744513273592,-500.0,0.00019178,2]
[357889853,1744513273621,-500.0,0.00019178,2]
[357889854,1744513273649,-472.75183681,0.00019178,2]
[357889855,1744513273676,-500.0,0.00019178,2]
[357889856,1744513273700,-500.0,0.00019178,2]
[357889857,1744513273726,-500.0,0.00019178,2]
[357889858,1744513273750,-500.0,0.00019178,2]
[357889859,1744513273774,-500.0,0.00019178,2]
[357889860,1744513273799,-500.0,0.00019178,2]
[357889861,1744513273826,-500.0,0.00019178,2]
[357889862,1744513273856,-500.0,0.00019178,2]
[357889863,1744513273885,-500.0,0.00019178,2]